[Event "Polgar Challenge 2021"]
[Site "Online"]
[Date "2021.04.04"]
[Round "1.6"]
[White "Saduakassova, Dinara"]
[Black "Khademalsharieh, Sarasadat"]
[Result "0-1"]
[ECO "D37"]
[WhiteElo "2500"]
[BlackElo "2494"]
[Annotator "ChessBase"]
[PlyCount "62"]
[EventDate "2021.04.08"]
[EventType "tourn"]
[EventCountry "NET"]
[SourceTitle "playchess.com"]
[Source "ChessBase"]
[SourceQuality "1"]
[TimeControl "600+5"]

1. d4 {[%emt 0:00:00]} d5 {[%emt 0:00:00]} 2. c4 {[%emt 0:00:00]} e6 {[%emt 0:00:00]} 3. Nf3 {[%emt 0:00:08]} a6 {[%emt 0:00:01]} 4. cxd5 {[%emt 0:00:05]} exd5 {[%emt 0:00:03]} 5. Nc3 {[%emt 0:00:07]} Nf6 {[%emt 0:00:03]} 6. Bg5 {[%emt 0:00:15]} Be6 {[%emt 0:00:22]} 7. Qb3 {[%emt 0:01:38]} Ra7 {[%emt 0:00:26]} 8. e3 {[%emt 0:00:50]} Nbd7 {[%emt 0:00:42]} 9. Bd3 {[%emt 0:00:54]} c5 {[%emt 0:00:25]} 10. dxc5 {[%emt 0:00:17]} d4 {[%emt 0:00:21]} 11. Bxf6 {[%emt 0:01:16]} gxf6 {[%emt 0:00:56]} 12. Qc2 {[%emt 0:00:07]} dxc3 {[%emt 0:00:03]} 13. Qxc3 {[%emt 0:00:06]} Nxc5 {[%emt 0:00:07]} 14. Bc2 {[%emt 0:00:11]} Ra8 {[%emt 0:00:24]} 15. Rd1 {[%emt 0:00:09]} Nd7 {[%emt 0:00:12]} 16. Nd4 {[%emt 0:00:40]} Rc8 {[%emt 0:00:15]} 17. Qd2 {[%emt 0:00:09]} Ne5 {[%emt 0:00:28]} 18. O-O {[%emt 0:00:23]} Bc5 {[%emt 0:00:34]} 19. b4 {[%emt 0:00:40]} Bxd4 {[%emt 0:00:15]} 20. exd4 {[%emt 0:00:02]} Ng6 {[%emt 0:00:40]} 21. d5 {[%emt 0:00:17]} Bd7 {[%emt 0:00:23]} 22. Rfe1+ {[%emt 0:00:02]} Kf8 {[%emt 0:00:01]} 23. Qh6+ {[%emt 0:00:06]} Kg8 {[%emt 0:00:01]} 24. Bb3 {[%emt 0:00:02]} Qf8 {[%emt 0:00:06]} 25. Qe3 {[%emt 0:00:08]} Qd6 {[%emt 0:00:12]} 26. Qh6 {[%emt 0:00:19]} Qf8 {[%emt 0:00:34]} 27. Qe3 {[%emt 0:00:14]} Qxb4 {[%emt 0:00:05]} 28. d6 {[%emt 0:00:04]} Kg7 {[%emt 0:00:10]} 29. Rd4 {[%emt 0:01:31]} Qc5 {[%emt 0:00:40]} 30. Red1 {[%emt 0:00:08]} Rhe8 {[%emt 0:00:04]} 31. Qd2 {[%emt 0:00:14]} Qc3 {[%emt 0:00:03]} 0-1

[Event "Polgar Challenge 2021"]
[Site "Online"]
[Date "2021.04.04"]
[Round "1.10"]
[White "Bjerre, Jonas Buhl"]
[Black "Gukesh D"]
[Result "1-0"]
[ECO "E04"]
[WhiteElo "2550"]
[BlackElo "2578"]
[Annotator "ChessBase"]
[PlyCount "35"]
[EventDate "2021.04.08"]
[EventType "tourn"]
[EventCountry "NET"]
[SourceTitle "playchess.com"]
[Source "ChessBase"]
[SourceQuality "1"]
[TimeControl "600+5"]

1. d4 {[%emt 0:00:00]} d5 {[%emt 0:00:00]} 2. c4 {[%emt 0:00:00]} e6 {[%emt 0:00:05]} 3. Nf3 {[%emt 0:00:02]} Nf6 {[%emt 0:00:02]} 4. g3 {[%emt 0:00:02]} dxc4 {[%emt 0:00:08]} 5. Bg2 {[%emt 0:00:03]} a6 {[%emt 0:00:02]} 6. Ne5 {[%emt 0:00:11]} Bb4+ {[%emt 0:00:15]} 7. Nc3 {[%emt 0:00:04]} Nd5 {[%emt 0:00:04]} 8. O-O {[%emt 0:00:31]} O-O {[%emt 0:00:10]} 9. Ne4 {[%emt 0:00:20]} b5 {[%emt 0:02:11]} 10. b3 {[%emt 0:00:07]} Bb7 {[%emt 0:02:31]} 11. bxc4 {[%emt 0:01:15]} Nc3 {[%emt 0:02:28]} 12. Qc2 {[%emt 0:01:56]} Qxd4 {[%emt 0:02:19]} 13. Ng5 {[%emt 0:01:23]} Nxe2+ {[%emt 0:00:13]} 14. Qxe2 {[%emt 0:01:27]} Bxg2 {[%emt 0:00:02]} 15. Kxg2 {[%emt 0:00:56]} Qxa1 {[%emt 0:00:20]} 16. Bb2 {[%emt 0:00:27]} Qxa2 {[%emt 0:00:05]} 17. Qc2 {[%emt 0:00:44]} f5 {[%emt 0:00:21]} 18. Ra1 {[%emt 0:00:09]} 1-0

[Event "Polgar Challenge 2021"]
[Site "Online"]
[Date "2021.04.04"]
[Round "2.1"]
[White "Zhu, Jiner"]
[Black "Gukesh D"]
[Result "0-1"]
[ECO "B12"]
[WhiteElo "2459"]
[BlackElo "2578"]
[Annotator "ChessBase"]
[PlyCount "98"]
[EventDate "2021.04.08"]
[EventType "tourn"]
[EventCountry "NET"]
[SourceTitle "playchess.com"]
[Source "ChessBase"]
[SourceQuality "1"]
[TimeControl "600+5"]

1. e4 {[%emt 0:00:00]} c6 {[%emt 0:00:00]} 2. d4 {[%emt 0:00:00]} d5 {[%emt 0:00:00]} 3. e5 {[%emt 0:00:00]} Bf5 {[%emt 0:00:00]} 4. Nf3 {[%emt 0:00:00]} e6 {[%emt 0:00:07]} 5. Be2 {[%emt 0:00:01]} Ne7 {[%emt 0:00:15]} 6. O-O {[%emt 0:00:07]} Nd7 {[%emt 0:00:02]} 7. c3 {[%emt 0:00:16]} Ng6 {[%emt 0:00:30]} 8. Ne1 {[%emt 0:01:32]} h5 {[%emt 0:00:03]} 9. Be3 {[%emt 0:00:14]} f6 {[%emt 0:01:16]} 10. Bxh5 {[%emt 0:01:44]} fxe5 {[%emt 0:00:04]} 11. Bxg6+ {[%emt 0:00:43]} Bxg6 {[%emt 0:00:03]} 12. dxe5 {[%emt 0:00:03]} Nxe5 {[%emt 0:00:41]} 13. Bd4 {[%emt 0:00:40]} Nd7 {[%emt 0:02:14]} 14. Qe2 {[%emt 0:00:56]} Qe7 {[%emt 0:00:29]} 15. Nd3 {[%emt 0:00:44]} Bxd3 {[%emt 0:02:37]} 16. Qxd3 {[%emt 0:00:03]} e5 {[%emt 0:00:33]} 17. Qg6+ {[%emt 0:00:50]} Qf7 {[%emt 0:00:06]} 18. Qxf7+ {[%emt 0:00:01]} Kxf7 {[%emt 0:00:01]} 19. Be3 {[%emt 0:00:01]} Bd6 {[%emt 0:00:08]} 20. Nd2 {[%emt 0:00:41]} Kg6 {[%emt 0:00:38]} 21. h3 {[%emt 0:00:06]} Rae8 {[%emt 0:00:09]} 22. Rad1 {[%emt 0:00:04]} Bc5 {[%emt 0:00:31]} 23. Ne4 {[%emt 0:00:43]} Bxe3 {[%emt 0:00:06]} 24. fxe3 {[%emt 0:00:02]} Re7 {[%emt 0:00:16]} 25. Ng3 {[%emt 0:00:13]} Nc5 {[%emt 0:00:14]} 26. e4 {[%emt 0:00:42]} Rd8 {[%emt 0:00:22]} 27. exd5 {[%emt 0:00:54]} cxd5 {[%emt 0:00:03]} 28. Rfe1 {[%emt 0:00:03]} Rdd7 {[%emt 0:00:03]} 29. Re2 {[%emt 0:00:04]} e4 {[%emt 0:00:13]} 30. Rf1 {[%emt 0:00:36]} Re5 {[%emt 0:00:29]} 31. Re3 {[%emt 0:00:08]} Rf7 {[%emt 0:00:08]} 32. Ne2 {[%emt 0:00:04]} Rxf1+ {[%emt 0:00:01]} 33. Kxf1 {[%emt 0:00:00]} Nd3 {[%emt 0:00:02]} 34. b3 {[%emt 0:00:06]} Kf6 {[%emt 0:00:05]} 35. Nd4 {[%emt 0:00:02]} Re7 {[%emt 0:00:06]} 36. g3 {[%emt 0:00:04]} Ke5 {[%emt 0:00:04]} 37. Ke2 {[%emt 0:00:17]} Rf7 {[%emt 0:00:03]} 38. Kd2 {[%emt 0:00:09]} Rf1 {[%emt 0:00:08]} 39. a4 {[%emt 0:00:07]} Rh1 {[%emt 0:00:04]} 40. h4 {[%emt 0:00:01]} Rh2+ {[%emt 0:00:08]} 41. Re2 {[%emt 0:00:02]} Rh1 {[%emt 0:00:03]} 42. Re3 {[%emt 0:00:01]} a6 {[%emt 0:00:02]} 43. Re2 {[%emt 0:00:04]} g6 {[%emt 0:00:07]} 44. Re3 {[%emt 0:00:02]} Kd6 {[%emt 0:00:02]} 45. Re2 {[%emt 0:00:04]} Rg1 {[%emt 0:00:02]} 46. Re3 {[%emt 0:00:05]} Rg2+ {[%emt 0:00:01]} 47. Ne2 {[%emt 0:00:01]} Ne5 {[%emt 0:00:11]} 48. c4 {[%emt 0:00:23]} Ng4 {[%emt 0:00:08]} 49. c5+ {[%emt 0:00:18]} Ke5 {[%emt 0:00:08]} 0-1

[Event "Polgar Challenge 2021"]
[Site "Online"]
[Date "2021.04.04"]
[Round "2.2"]
[White "Keymer, Vincent"]
[Black "Bjerre, Jonas Buhl"]
[Result "1-0"]
[ECO "D38"]
[WhiteElo "2591"]
[BlackElo "2550"]
[Annotator "ChessBase"]
[PlyCount "87"]
[EventDate "2021.04.08"]
[EventType "tourn"]
[EventCountry "NET"]
[SourceTitle "playchess.com"]
[Source "ChessBase"]
[SourceQuality "1"]
[TimeControl "600+5"]

1. d4 {[%emt 0:00:00]} Nf6 {[%emt 0:00:00]} 2. c4 {[%emt 0:00:00]} e6 {[%emt 0:00:00]} 3. Nf3 {[%emt 0:00:00]} d5 {[%emt 0:00:00]} 4. Nc3 {[%emt 0:00:00]} Bb4 {[%emt 0:00:01]} 5. Qa4+ {[%emt 0:00:04]} Nc6 {[%emt 0:00:03]} 6. e3 {[%emt 0:00:00]} O-O {[%emt 0:00:09]} 7. Bd2 {[%emt 0:00:03]} dxc4 {[%emt 0:00:25]} 8. Bxc4 {[%emt 0:00:00]} Bd6 {[%emt 0:00:02]} 9. Qc2 {[%emt 0:00:03]} e5 {[%emt 0:00:22]} 10. dxe5 {[%emt 0:00:14]} Nxe5 {[%emt 0:00:03]} 11. Nxe5 {[%emt 0:00:00]} Bxe5 {[%emt 0:00:01]} 12. O-O {[%emt 0:00:01]} c6 {[%emt 0:01:09]} 13. h3 {[%emt 0:00:39]} Nd5 {[%emt 0:01:51]} 14. Ne2 {[%emt 0:02:37]} Qf6 {[%emt 0:01:47]} 15. Bxd5 {[%emt 0:00:13]} cxd5 {[%emt 0:00:18]} 16. Bc3 {[%emt 0:00:01]} Bf5 {[%emt 0:00:33]} 17. Bxe5 {[%emt 0:00:05]} Qxe5 {[%emt 0:00:06]} 18. Qc3 {[%emt 0:00:01]} Qd6 {[%emt 0:00:29]} 19. Rac1 {[%emt 0:00:47]} Rac8 {[%emt 0:00:10]} 20. Qd4 {[%emt 0:00:12]} Qa6 {[%emt 0:00:16]} 21. Nc3 {[%emt 0:00:51]} Be6 {[%emt 0:00:32]} 22. Rfd1 {[%emt 0:00:37]} Rc4 {[%emt 0:00:10]} 23. Qd3 {[%emt 0:00:02]} Rfc8 {[%emt 0:00:28]} 24. b3 {[%emt 0:00:28]} R4c7 {[%emt 0:01:01]} 25. Qxa6 {[%emt 0:00:30]} bxa6 {[%emt 0:00:01]} 26. Ne2 {[%emt 0:00:10]} Rc2 {[%emt 0:00:02]} 27. Kf1 {[%emt 0:01:20]} a5 {[%emt 0:00:37]} 28. a3 {[%emt 0:00:26]} g6 {[%emt 0:00:15]} 29. Rxc2 {[%emt 0:00:14]} Rxc2 {[%emt 0:00:02]} 30. Nd4 {[%emt 0:00:00]} Rc3 {[%emt 0:00:22]} 31. Ke1 {[%emt 0:00:17]} a4 {[%emt 0:00:26]} 32. Kd2 {[%emt 0:00:04]} Rc7 {[%emt 0:00:14]} 33. b4 {[%emt 0:00:02]} Kf8 {[%emt 0:00:33]} 34. Rc1 {[%emt 0:00:02]} Rxc1 {[%emt 0:00:03]} 35. Kxc1 {[%emt 0:00:00]} Bd7 {[%emt 0:00:02]} 36. Kd2 {[%emt 0:00:12]} Ke7 {[%emt 0:00:03]} 37. Kc3 {[%emt 0:00:07]} Kd6 {[%emt 0:00:01]} 38. Nf3 {[%emt 0:00:15]} f6 {[%emt 0:00:05]} 39. Kd4 {[%emt 0:00:02]} Bb5 {[%emt 0:00:04]} 40. h4 {[%emt 0:00:07]} Bf1 {[%emt 0:00:10]} 41. g3 {[%emt 0:00:02]} Be2 {[%emt 0:00:01]} 42. Nd2 {[%emt 0:00:12]} a6 {[%emt 0:00:16]} 43. e4 {[%emt 0:01:04]} dxe4 {[%emt 0:00:22]} 44. Nxe4+ {[%emt 0:00:01]} 1-0

[Event "Polgar Challenge 2021"]
[Site "Online"]
[Date "2021.04.04"]
[Round "2.4"]
[White "Abdumalik, Zhansaya"]
[Black "Yoo, Christopher Woojin"]
[Result "1/2-1/2"]
[ECO "B40"]
[WhiteElo "2472"]
[BlackElo "2455"]
[Annotator "ChessBase"]
[PlyCount "84"]
[EventDate "2021.04.08"]
[EventType "tourn"]
[EventCountry "NET"]
[SourceTitle "playchess.com"]
[Source "ChessBase"]
[SourceQuality "1"]
[TimeControl "600+5"]

1. e4 {[%emt 0:00:00]} c5 {[%emt 0:00:00]} 2. Nf3 {[%emt 0:00:00]} e6 {[%emt 0:00:00]} 3. d4 {[%emt 0:00:00]} cxd4 {[%emt 0:00:00]} 4. Nxd4 {[%emt 0:00:00]} Nf6 {[%emt 0:00:00]} 5. Nc3 {[%emt 0:00:01]} Bb4 {[%emt 0:00:02]} 6. Bd3 {[%emt 0:00:40]} d6 {[%emt 0:00:04]} 7. O-O {[%emt 0:00:06]} O-O {[%emt 0:00:21]} 8. Nce2 {[%emt 0:00:39]} e5 {[%emt 0:01:00]} 9. Nb3 {[%emt 0:00:14]} d5 {[%emt 0:00:32]} 10. exd5 {[%emt 0:00:22]} Nxd5 {[%emt 0:02:11]} 11. Ng3 {[%emt 0:01:04]} Nc6 {[%emt 0:00:36]} 12. c3 {[%emt 0:00:13]} Be7 {[%emt 0:00:08]} 13. Nf5 {[%emt 0:00:40]} Bg5 {[%emt 0:02:19]} 14. Qh5 {[%emt 0:00:33]} h6 {[%emt 0:00:23]} 15. Bxg5 {[%emt 0:01:00]} Qxg5 {[%emt 0:00:03]} 16. Qxg5 {[%emt 0:00:01]} hxg5 {[%emt 0:00:00]} 17. Nd6 {[%emt 0:00:02]} Rd8 {[%emt 0:00:41]} 18. Nxc8 {[%emt 0:00:11]} Raxc8 {[%emt 0:00:00]} 19. Rfd1 {[%emt 0:00:15]} Nce7 {[%emt 0:00:08]} 20. Be4 {[%emt 0:00:38]} f5 {[%emt 0:00:08]} 21. Bxd5+ {[%emt 0:00:06]} Nxd5 {[%emt 0:00:14]} 22. Re1 {[%emt 0:00:03]} e4 {[%emt 0:00:44]} 23. Nd4 {[%emt 0:00:16]} g6 {[%emt 0:00:03]} 24. Ne6 {[%emt 0:00:13]} Rd6 {[%emt 0:00:03]} 25. Nxg5 {[%emt 0:00:03]} Nf4 {[%emt 0:00:02]} 26. g3 {[%emt 0:00:35]} Nd3 {[%emt 0:00:02]} 27. Re2 {[%emt 0:00:01]} Rb6 {[%emt 0:00:11]} 28. f3 {[%emt 0:00:44]} exf3 {[%emt 0:00:14]} 29. Nxf3 {[%emt 0:00:02]} Nxb2 {[%emt 0:00:37]} 30. Rb1 {[%emt 0:00:08]} Na4 {[%emt 0:00:43]} 31. Rxb6 {[%emt 0:00:05]} axb6 {[%emt 0:00:04]} 32. Nh4 {[%emt 0:00:05]} Kf7 {[%emt 0:00:09]} 33. Rd2 {[%emt 0:00:09]} Nc5 {[%emt 0:00:03]} 34. Nf3 {[%emt 0:00:21]} Ke7 {[%emt 0:00:10]} 35. Re2+ {[%emt 0:00:24]} Kf6 {[%emt 0:00:06]} 36. Rb2 {[%emt 0:00:32]} Rc6 {[%emt 0:00:14]} 37. c4 {[%emt 0:00:05]} Ne4 {[%emt 0:00:17]} 38. Kg2 {[%emt 0:00:03]} Nd6 {[%emt 0:00:05]} 39. Nd2 {[%emt 0:00:10]} Ke5 {[%emt 0:00:05]} 40. Nf3+ {[%emt 0:00:22]} Kf6 {[%emt 0:00:10]} 41. Nd2 {[%emt 0:00:02]} Ke5 {[%emt 0:00:06]} 42. Nf3+ {[%emt 0:00:02]} Kf6 {[%emt 0:00:12]} 1/2-1/2

[Event "Polgar Challenge 2021"]
[Site "Online"]
[Date "2021.04.04"]
[Round "2.5"]
[White "Khademalsharieh, Sarasadat"]
[Black "Liang, Awonder"]
[Result "0-1"]
[ECO "E65"]
[WhiteElo "2494"]
[BlackElo "2592"]
[Annotator "ChessBase"]
[PlyCount "76"]
[EventDate "2021.04.08"]
[EventType "tourn"]
[EventCountry "NET"]
[SourceTitle "playchess.com"]
[Source "ChessBase"]
[SourceQuality "1"]
[TimeControl "600+5"]

1. d4 {[%emt 0:00:00]} Nf6 {[%emt 0:00:00]} 2. c4 {[%emt 0:00:00]} g6 {[%emt 0:00:00]} 3. g3 {[%emt 0:00:02]} Bg7 {[%emt 0:00:00]} 4. Bg2 {[%emt 0:00:01]} O-O {[%emt 0:00:00]} 5. Nc3 {[%emt 0:00:02]} d6 {[%emt 0:00:00]} 6. Nf3 {[%emt 0:00:02]} c5 {[%emt 0:00:00]} 7. dxc5 {[%emt 0:00:06]} dxc5 {[%emt 0:00:01]} 8. O-O {[%emt 0:00:01]} Nc6 {[%emt 0:00:01]} 9. Bf4 {[%emt 0:00:04]} Be6 {[%emt 0:00:10]} 10. Ne5 {[%emt 0:00:17]} Qc8 {[%emt 0:00:35]} 11. Nxc6 {[%emt 0:00:12]} bxc6 {[%emt 0:00:00]} 12. b3 {[%emt 0:00:13]} Bh3 {[%emt 0:00:02]} 13. Rc1 {[%emt 0:00:13]} Rd8 {[%emt 0:00:29]} 14. Qc2 {[%emt 0:00:14]} Nh5 {[%emt 0:01:10]} 15. Be3 {[%emt 0:00:05]} Bd4 {[%emt 0:00:05]} 16. Na4 {[%emt 0:01:12]} Bxe3 {[%emt 0:00:46]} 17. fxe3 {[%emt 0:00:03]} Bxg2 {[%emt 0:00:01]} 18. Kxg2 {[%emt 0:00:01]} Qe6 {[%emt 0:00:08]} 19. Qc3 {[%emt 0:00:50]} Qg4 {[%emt 0:00:08]} 20. Rf3 {[%emt 0:00:28]} Ng7 {[%emt 0:00:03]} 21. Nxc5 {[%emt 0:00:32]} Nf5 {[%emt 0:00:03]} 22. Kh1 {[%emt 0:00:16]} Rd6 {[%emt 0:00:01]} 23. Rcf1 {[%emt 0:00:10]} Qh3 {[%emt 0:01:22]} 24. Kg1 {[%emt 0:02:11]} Nh6 {[%emt 0:00:21]} 25. R3f2 {[%emt 0:01:01]} Ng4 {[%emt 0:00:04]} 26. Rg2 {[%emt 0:00:11]} Qh6 {[%emt 0:00:10]} 27. Nd3 {[%emt 0:01:00]} Rad8 {[%emt 0:01:29]} 28. Rf4 {[%emt 0:00:38]} Nxe3 {[%emt 0:00:18]} 29. Rgf2 {[%emt 0:00:02]} Nd1 {[%emt 0:00:01]} 30. Qa5 {[%emt 0:00:12]} Nxf2 {[%emt 0:00:03]} 31. Nxf2 {[%emt 0:00:01]} Qh5 {[%emt 0:00:35]} 32. Qxa7 {[%emt 0:00:05]} Qxe2 {[%emt 0:00:03]} 33. Re4 {[%emt 0:00:15]} Rd1+ {[%emt 0:00:16]} 34. Kg2 {[%emt 0:00:02]} Qf1+ {[%emt 0:00:00]} 35. Kf3 {[%emt 0:00:01]} R1d7 {[%emt 0:00:07]} 36. Qc5 {[%emt 0:00:06]} e6 {[%emt 0:00:36]} 37. Qxc6 {[%emt 0:00:22]} Rd3+ {[%emt 0:00:05]} 38. Re3 {[%emt 0:00:07]} Rd2 {[%emt 0:00:00]} 0-1

[Event "Polgar Challenge 2021"]
[Site "Online"]
[Date "2021.04.04"]
[Round "2.7"]
[White "Murzin, Volodar"]
[Black "Salimova, Nurgyul"]
[Result "0-1"]
[ECO "B13"]
[WhiteElo "2478"]
[BlackElo "2397"]
[Annotator "ChessBase"]
[PlyCount "62"]
[EventDate "2021.04.08"]
[EventType "tourn"]
[EventCountry "NET"]
[SourceTitle "playchess.com"]
[Source "ChessBase"]
[SourceQuality "1"]
[TimeControl "600+5"]

1. e4 {[%emt 0:00:00]} c6 {[%emt 0:00:00]} 2. d4 {[%emt 0:00:11]} d5 {[%emt 0:00:00]} 3. exd5 {[%emt 0:00:12]} cxd5 {[%emt 0:00:00]} 4. Bd3 {[%emt 0:00:04]} Nf6 {[%emt 0:00:02]} 5. c3 {[%emt 0:00:06]} Bg4 {[%emt 0:00:08]} 6. Ne2 {[%emt 0:00:03]} e6 {[%emt 0:01:13]} 7. O-O {[%emt 0:00:05]} Nc6 {[%emt 0:00:20]} 8. Qe1 {[%emt 0:00:05]} Bd6 {[%emt 0:01:06]} 9. f3 {[%emt 0:00:03]} Bh5 {[%emt 0:00:04]} 10. Qh4 {[%emt 0:00:03]} h6 {[%emt 0:02:40]} 11. Ng3 {[%emt 0:01:49]} Bg6 {[%emt 0:00:51]} 12. Bxg6 {[%emt 0:00:36]} fxg6 {[%emt 0:00:02]} 13. f4 {[%emt 0:01:11]} Qd7 {[%emt 0:00:36]} 14. Nd2 {[%emt 0:00:40]} O-O-O {[%emt 0:00:16]} 15. Nf3 {[%emt 0:00:07]} g5 {[%emt 0:00:45]} 16. fxg5 {[%emt 0:00:05]} hxg5 {[%emt 0:00:02]} 17. Qxg5 {[%emt 0:00:01]} Ne4 {[%emt 0:00:36]} 18. Nxe4 {[%emt 0:00:46]} dxe4 {[%emt 0:00:01]} 19. Ne5 {[%emt 0:00:02]} Nxe5 {[%emt 0:00:03]} 20. dxe5 {[%emt 0:00:03]} Bc5+ {[%emt 0:00:01]} 21. Be3 {[%emt 0:00:04]} Qd2 {[%emt 0:00:33]} 22. Rae1 {[%emt 0:01:46]} Rd3 {[%emt 0:00:53]} 23. Qxg7 {[%emt 0:00:18]} Bxe3+ {[%emt 0:00:04]} 24. Kh1 {[%emt 0:00:01]} Rdd8 {[%emt 0:01:09]} 25. Qg4 {[%emt 0:00:46]} Kb8 {[%emt 0:00:22]} 26. Qxe4 {[%emt 0:00:15]} Bb6 {[%emt 0:00:12]} 27. Rf6 {[%emt 0:00:48]} Rde8 {[%emt 0:00:07]} 28. Rf7 {[%emt 0:00:49]} Rxh2+ {[%emt 0:00:02]} 29. Kxh2 {[%emt 0:00:03]} Qh6+ {[%emt 0:00:01]} 30. Kg3 {[%emt 0:00:08]} Rg8+ {[%emt 0:00:01]} 31. Kf3 {[%emt 0:00:31]} Qh5+ {[%emt 0:00:01]} 0-1

[Event "Polgar Challenge 2021"]
[Site "Online"]
[Date "2021.04.04"]
[Round "2.10"]
[White "Badelka, Olga"]
[Black "Lei, Tingjie"]
[Result "0-1"]
[ECO "D02"]
[WhiteElo "2433"]
[BlackElo "2505"]
[Annotator "ChessBase"]
[PlyCount "76"]
[EventDate "2021.04.08"]
[EventType "tourn"]
[EventCountry "NET"]
[SourceTitle "playchess.com"]
[Source "ChessBase"]
[SourceQuality "1"]
[TimeControl "600+5"]

1. d4 {[%emt 0:00:00]} d5 {[%emt 0:00:00]} 2. Nf3 {[%emt 0:00:00]} Nf6 {[%emt 0:00:00]} 3. Bf4 {[%emt 0:00:01]} e6 {[%emt 0:00:21]} 4. e3 {[%emt 0:00:07]} Bd6 {[%emt 0:00:01]} 5. Bg3 {[%emt 0:00:05]} c5 {[%emt 0:00:13]} 6. Nbd2 {[%emt 0:00:13]} Qb6 {[%emt 0:01:17]} 7. Bxd6 {[%emt 0:01:17]} Qxd6 {[%emt 0:00:03]} 8. dxc5 {[%emt 0:00:02]} Qxc5 {[%emt 0:00:02]} 9. c4 {[%emt 0:00:03]} Nc6 {[%emt 0:00:42]} 10. Rc1 {[%emt 0:00:07]} d4 {[%emt 0:01:14]} 11. exd4 {[%emt 0:00:29]} Nxd4 {[%emt 0:00:03]} 12. a3 {[%emt 0:00:41]} O-O {[%emt 0:01:14]} 13. b4 {[%emt 0:00:08]} Nxf3+ {[%emt 0:00:03]} 14. Nxf3 {[%emt 0:00:21]} Qe7 {[%emt 0:00:05]} 15. c5 {[%emt 0:01:42]} e5 {[%emt 0:03:09]} 16. Bc4 {[%emt 0:00:03]} e4 {[%emt 0:00:06]} 17. Ng5 {[%emt 0:01:22]} h6 {[%emt 0:00:31]} 18. Nxf7 {[%emt 0:00:26]} Rxf7 {[%emt 0:00:06]} 19. Bxf7+ {[%emt 0:00:06]} Qxf7 {[%emt 0:00:05]} 20. Qd8+ {[%emt 0:00:20]} Kh7 {[%emt 0:00:03]} 21. O-O {[%emt 0:00:25]} Qg6 {[%emt 0:00:08]} 22. Qd6 {[%emt 0:01:12]} Bd7 {[%emt 0:00:07]} 23. Rc3 {[%emt 0:00:10]} Bb5 {[%emt 0:00:21]} 24. Rg3 {[%emt 0:00:17]} Qf7 {[%emt 0:00:02]} 25. Rd1 {[%emt 0:00:35]} Nh5 {[%emt 0:00:19]} 26. Re3 {[%emt 0:00:20]} Rf8 {[%emt 0:00:58]} 27. Qd2 {[%emt 0:00:03]} Nf4 {[%emt 0:00:15]} 28. f3 {[%emt 0:00:55]} exf3 {[%emt 0:00:16]} 29. Rxf3 {[%emt 0:00:01]} Bc6 {[%emt 0:00:01]} 30. Rg3 {[%emt 0:00:04]} Be4 {[%emt 0:00:32]} 31. Re1 {[%emt 0:00:09]} Qf5 {[%emt 0:00:09]} 32. Qe3 {[%emt 0:00:28]} Bc6 {[%emt 0:00:05]} 33. Qd2 {[%emt 0:00:16]} Rf6 {[%emt 0:00:02]} 34. h3 {[%emt 0:00:06]} Nxg2 {[%emt 0:00:07]} 35. Rxg2 {[%emt 0:00:07]} Bxg2 {[%emt 0:00:01]} 36. Kxg2 {[%emt 0:00:02]} Rg6+ {[%emt 0:00:04]} 37. Kh2 {[%emt 0:00:02]} Qf3 {[%emt 0:00:05]} 38. Re3 {[%emt 0:00:20]} Qf4+ {[%emt 0:00:02]} 0-1

[Event "Polgar Challenge 2021"]
[Site "Online"]
[Date "2021.04.04"]
[Round "3.1"]
[White "Lei, Tingjie"]
[Black "Zhu, Jiner"]
[Result "1-0"]
[ECO "A18"]
[WhiteElo "2505"]
[BlackElo "2459"]
[Annotator "ChessBase"]
[PlyCount "43"]
[EventDate "2021.04.08"]
[EventType "tourn"]
[EventCountry "NET"]
[SourceTitle "playchess.com"]
[Source "ChessBase"]
[SourceQuality "1"]
[TimeControl "600+5"]

1. c4 {[%emt 0:00:00]} Nf6 {[%emt 0:00:00]} 2. Nc3 {[%emt 0:00:00]} e6 {[%emt 0:00:00]} 3. e4 {[%emt 0:00:00]} d5 {[%emt 0:00:00]} 4. cxd5 {[%emt 0:00:00]} exd5 {[%emt 0:00:00]} 5. e5 {[%emt 0:00:00]} d4 {[%emt 0:00:34]} 6. exf6 {[%emt 0:00:01]} dxc3 {[%emt 0:00:03]} 7. Bb5+ {[%emt 0:00:01]} c6 {[%emt 0:00:01]} 8. Qe2+ {[%emt 0:00:03]} Be6 {[%emt 0:00:03]} 9. Bc4 {[%emt 0:00:01]} cxd2+ {[%emt 0:00:05]} 10. Bxd2 {[%emt 0:00:02]} Qxf6 {[%emt 0:00:05]} 11. Nf3 {[%emt 0:00:05]} Be7 {[%emt 0:01:08]} 12. O-O-O {[%emt 0:00:05]} h6 {[%emt 0:01:02]} 13. Rhe1 {[%emt 0:00:03]} O-O {[%emt 0:00:36]} 14. Bxe6 {[%emt 0:00:05]} Qxe6 {[%emt 0:00:12]} 15. Qd3 {[%emt 0:03:25]} Qd6 {[%emt 0:02:36]} 16. Qe4 {[%emt 0:00:05]} Qc5+ {[%emt 0:00:10]} 17. Kb1 {[%emt 0:00:09]} Bd6 {[%emt 0:00:44]} 18. Be3 {[%emt 0:00:34]} Qb4 {[%emt 0:02:10]} 19. Rd4 {[%emt 0:00:03]} Qc5 {[%emt 0:00:12]} 20. Rc1 {[%emt 0:01:38]} Qa5 {[%emt 0:00:11]} 21. Rxd6 {[%emt 0:00:04]} Na6 {[%emt 0:00:31]} 22. Bxh6 {[%emt 0:02:14]} 1-0